bitfinex-derivatives/quotes_SOLF0:USTF0_20251119
["timestamp","ask_amount","ask_price","bid_price","bid_amount"]
[1763586999905,0.05596074,133.53,133.52,12.88668476]
[1763587000917,0.05596074,133.53,133.52,10.0581]
[1763587003715,0.05596074,133.53,133.52,3.31]
[1763587006722,3.03,133.6,133.53,6.7472]
[1763587007121,3.03,133.6,133.53,10.0572]
[1763587007628,3.03,133.6,133.51,10.0586]
[1763587007925,3.03,133.56,133.54,0.047448]
[1763587008728,3.03,133.55,133.54,0.047448]
[1763587011728,3.08125444,133.57,133.54,0.047448]
[1763587012120,0.05125444,133.57,133.54,3.357448]
[1763587013534,3.08125444,133.57,133.54,3.357448]
[1763587014123,0.05125444,133.57,133.54,3.357448]
[1763587014323,0.05125444,133.57,133.54,10.104148]
[1763587014528,0.05125444,133.57,133.55,3.31]
[1763587015729,0.05125444,133.57,133.56,6.7461]
[1763587015929,0.05125444,133.57,133.56,10.0561]
[1763587017032,3.03,133.6,133.57,3.31]
[1763587017227,22.56,133.65,133.57,3.31]
[1763587017428,3.03,133.64,133.57,3.31]
[1763587017625,3.03,133.64,133.58,6.7451]
[1763587018135,0.05177969,133.62,133.6,0.05586766]
[1763587018432,3.08177969,133.62,133.6,0.05586766]
[1763587020332,0.05177969,133.62,133.6,10.10996766]
[1763587020532,0.05177969,133.62,133.61,3.31]
[1763587020734,0.05177969,133.62,133.6,6.79996766]
[1763587020924,2.82579932,133.61,133.6,0.05586766]
[1763587021324,2.87757901,133.62,133.6,0.05586766]
[1763587021530,5.90757901,133.62,133.6,0.05586766]
[1763587022031,0.05177969,133.62,133.6,0.05586766]
[1763587022238,5.90757901,133.62,133.6,0.05586766]
[1763587022738,3.03,133.61,133.6,0.05586766]
[1763587023839,3.08177969,133.62,133.6,0.05586766]
[1763587024141,0.05177969,133.62,133.6,0.05586766]
[1763587024630,0.05177969,133.62,133.6,3.36586766]
[1763587024936,0.05177969,133.62,133.6,0.05586766]
[1763587025126,0.05177969,133.62,133.6,3.36586766]
[1763587025733,3.03,133.61,133.6,0.05586766]
[1763587026340,0.05177969,133.62,133.6,3.36586766]
[1763587026839,3.03,133.68,133.61,3.31]
[1763587027033,3.03,133.68,133.64,3.31]
[1763587027640,3.03,133.68,133.61,3.31]
[1763587028148,3.21,133.64,133.63,0.05351851]
[1763587028346,3.26536634,133.65,133.62,0.05265355]
[1763587031337,3.21,133.64,133.62,0.05265355]
[1763587034739,3.21,133.64,133.53,3.05]
[1763587034934,3.21,133.61,133.53,3.05]
[1763587035133,3.21,133.61,133.53,22.78166231]
[1763587035339,3.21,133.61,133.54,3.05]
[1763587035934,3.21,133.61,133.56,3.10020586]
[1763587035935,0.04940468,133.59,133.56,3.10020586]
[1763587036551,3.25940468,133.59,133.56,0.05020586]
[1763587036731,3.25940468,133.59,133.56,3.10020586]
[1763587036937,0.04940468,133.59,133.56,3.10020586]
[1763587038647,3.25940468,133.59,133.56,0.05020586]
[1763587038842,3.25940468,133.59,133.56,3.10020586]
[1763587039038,0.04940468,133.59,133.56,3.10020586]
[1763587041043,3.25940468,133.59,133.56,3.10020586]
[1763587041351,3.25940468,133.59,133.56,0.05020586]
[1763587042048,3.21,133.58,133.5,3.05]
[1763587042544,3.21,133.58,133.51,6.7486]
[1763587042939,3.21,133.58,133.51,9.7986]
[1763587043140,3.26674309,133.56,133.53,0.05179452]
[1763587043948,0.05674309,133.56,133.53,3.10179452]
[1763587044142,0.05674309,133.56,133.54,3.05]
[1763587044446,3.21,133.62,133.54,3.05]
[1763587045038,3.21,133.62,133.55,9.7966]
[1763587045344,3.26532865,133.6,133.57,0.05758559]
[1763587045549,3.26668212,133.6,133.57,0.05107054]
[1763587045744,3.26668212,133.6,133.57,3.10107054]
[1763587045944,3.26668212,133.6,133.57,0.05107054]
[1763587046746,13.80927164,133.6,133.51,3.14]
[1763587046944,3.11,133.59,133.51,3.14]
[1763587047638,3.11,133.56,133.48,3.14]
[1763587047842,3.16116514,133.53,133.51,0.04971886]
[1763587048045,0.05116514,133.53,133.51,0.04971886]
[1763587048443,0.05116514,133.53,133.51,3.18971886]
[1763587050654,3.16116514,133.53,133.51,0.04971886]
[1763587050850,0.05116514,133.53,133.51,0.04971886]
[1763587051454,0.05116514,133.53,133.51,3.18971886]
[1763587051847,0.05116514,133.53,133.51,9.93781886]
[1763587052050,0.05116514,133.53,133.52,3.14]
[1763587056854,0.05116514,133.53,133.51,3.18971886]
[1763587058047,0.05116514,133.53,133.51,9.93791886]
[1763587058247,0.05116514,133.53,133.52,3.14]
[1763587059357,0.05116514,133.53,133.51,3.18971886]
[1763587061551,0.05116514,133.53,133.51,9.93791886]
[1763587061752,0.05116514,133.53,133.52,3.14]
[1763587062645,3.17116514,133.53,133.51,0.04971886]
[1763587066859,3.17116514,133.53,133.46,6.7511]
[1763587067064,3.17116514,133.53,133.44,18.94]
[1763587067266,3.12,133.53,133.44,18.94]
[1763587067860,3.12,133.49,133.47,0.04877331]
[1763587068962,3.12,133.49,133.42,6.7532]
[1763587069356,3.12,133.49,133.41,3.14]
[1763587069963,3.17710659,133.46,133.44,0.05404724]
[1763587070163,3.16882049,133.46,133.44,0.04716975]
[1763587073365,3.16882049,133.46,133.38,3.14]
[1763587073565,3.16882049,133.46,133.35,3.14]
[1763587073761,3.12,133.46,133.35,3.14]
[1763587074061,3.12,133.46,133.37,3.14]
[1763587074266,3.16913356,133.43,133.4,0.05042477]
[1763587074567,3.17183327,133.43,133.4,0.05186841]
[1763587075858,3.17183327,133.43,133.33,3.14]
[1763587076059,3.12,133.43,133.33,3.14]
[1763587077062,3.12,133.38,133.37,0.04834217]
[1763587077262,3.12,133.38,133.36,0.05084469]
[1763587078168,3.16932255,133.39,133.36,0.05084469]
[1763587081264,3.12,133.44,133.36,3.19084469]
[1763587081570,3.12,133.44,133.36,3.14]
[1763587081958,3.12,133.44,133.38,3.14]
[1763587082159,3.12,133.52,133.38,3.14]
[1763587082365,3.1689196,133.46,133.44,0.05013749]
[1763587082566,3.17456409,133.46,133.44,0.05125291]
[1763587085878,0.05456409,133.46,133.44,0.05125291]
[1763587086981,3.17456409,133.46,133.44,0.00125291]
[1763587087181,3.17456409,133.46,133.39,6.7543]
[1763587087574,3.17456409,133.46,133.42,3.14]
[1763587087768,3.12,133.46,133.42,3.14]
[1763587087968,3.24,133.49,133.42,3.14]
[1763587088179,0.05003932,133.47,133.44,3.21482242]
[1763587088369,0.0518539,133.47,133.44,3.2106092]
[1763587088572,3.2918539,133.47,133.44,0.0506092]
[1763587088970,0.0518539,133.47,133.44,3.2106092]
[1763587089481,3.24,133.51,133.44,3.2106092]
[1763587090582,0.05148153,133.49,133.44,3.2106092]
[1763587090780,0.05148153,133.49,133.46,3.16]
[1763587093181,3.29148153,133.49,133.44,3.2106092]
[1763587095486,0.05148153,133.49,133.45,3.16]
[1763587096289,0.05148153,133.49,133.47,3.16]
[1763587097189,3.24,133.57,133.48,3.16]
[1763587097787,3.24,133.57,133.52,3.16]
[1763587098289,0.05326086,133.56,133.53,3.2079959]
[1763587098690,3.29326086,133.56,133.53,0.0479959]
[1763587099090,0.05326086,133.56,133.53,3.2079959]
[1763587099388,0.05326086,133.56,133.53,0.0479959]
[1763587099389,3.29326086,133.56,133.53,0.0479959]
[1763587102496,0.05326086,133.56,133.53,3.2079959]
[1763587102897,3.29326086,133.56,133.53,0.0479959]
[1763587104498,0.05326086,133.56,133.53,3.2079959]
[1763587105701,0.05326086,133.56,133.55,3.16]
[1763587106594,0.05326086,133.56,133.53,0.0479959]
[1763587106595,3.24,133.62,133.57,3.05]
[1763587107609,0.05685364,133.61,133.58,3.09967829]
[1763587108606,3.30685364,133.61,133.58,0.04967829]
[1763587108805,3.30685364,133.61,133.58,3.09967829]
[1763587109309,3.30685364,133.61,133.58,0.04967829]
[1763587111006,0.05685364,133.61,133.58,3.09967829]
[1763587112906,3.25,133.67,133.6,3.05]
[1763587113803,3.25,133.66,133.52,22.95428317]
[1763587114112,0.05490112,133.6,133.58,0.05503778]
[1763587114311,0.05013923,133.6,133.58,0.05463858]
[1763587115206,0.05013923,133.6,133.58,3.10463858]
[1763587117311,0.05013923,133.6,133.59,3.05]
[1763587119310,0.05013923,133.6,133.58,6.79933858]
[1763587119511,3.23013923,133.6,133.58,0.05463858]
[1763587119707,0.05013923,133.6,133.58,0.05463858]
[1763587119903,3.23013923,133.6,133.58,0.05463858]
[1763587123817,0.05013923,133.6,133.58,0.05463858]
[1763587125519,3.23013923,133.6,133.58,0.05463858]
[1763587127519,4.73013923,133.6,133.5,3.13]
[1763587127720,3.18,133.59,133.5,3.13]
[1763587128107,3.18,133.59,133.51,6.7486]
[1763587128513,3.18,133.59,133.5,3.13]
[1763587128724,3.18,133.55,133.54,0.04716497]
[1763587129427,3.18,133.55,133.49,9.8796]
[1763587130221,3.18,133.55,133.51,0.05238513]
[1763587131930,3.18,133.55,133.51,3.18238513]
[1763587132226,3.18,133.55,133.51,0.05238513]
[1763587136933,3.18,133.55,133.46,6.7507]
[1763587137424,3.18,133.55,133.45,3.13]
[1763587138026,3.18,133.5,133.49,0.04912668]
[1763587138230,0.05026888,133.51,133.49,0.04912668]
[1763587138427,3.23026888,133.51,133.49,0.04912668]
[1763587142423,3.23026888,133.51,133.43,6.7526]
[1763587142630,3.18,133.51,133.43,6.7526]
[1763587143030,3.18,133.51,133.43,9.8826]
[1763587143221,3.18,133.51,133.41,6.7536]
[1763587143426,3.18,133.51,133.41,9.8836]
[1763587143730,22.56,133.54,133.45,0.05471686]
[1763587143731,3.18,133.46,133.45,0.05471686]
[1763587143924,3.18,133.46,133.44,0.04782856]
[1763587144238,3.2324384,133.46,133.44,0.04900534]
[1763587149634,0.0524384,133.46,133.44,3.14900534]
[1763587150028,3.3124384,133.46,133.44,0.04900534]
[1763587151839,3.3124384,133.46,133.38,3.1]
[1763587152735,3.3124384,133.46,133.26,15.8]
[1763587152736,3.3124384,133.46,133.35,3.1]
[1763587153039,3.26,133.41,133.39,0.05345754]
[1763587153229,3.31343963,133.41,133.39,0.0571608]
[1763587154342,3.31343963,133.41,133.32,3.1]
[1763587154533,3.26,133.41,133.32,3.1]
[1763587154930,3.26,133.41,133.34,3.1]
[1763587155337,3.30788299,133.39,133.36,0.04908633]
[1763587155534,3.31054941,133.39,133.36,0.04891183]
[1763587156438,0.05054941,133.39,133.36,3.14891183]
[1763587157744,0.05054941,133.39,133.37,6.7557]
[1763587157940,0.05054941,133.39,133.38,3.1]
[1763587159038,3.26,133.43,133.38,3.1]
[1763587159235,3.26,133.43,133.34,3.1]
[1763587159930,3.31553617,133.4,133.37,0.05282919]
[1763587160141,3.31089805,133.4,133.37,0.05536018]
[1763587160942,0.05089805,133.4,133.37,3.15536018]
[1763587161539,0.05089805,133.4,133.37,9.91106018]
[1763587161840,3.31089805,133.4,133.37,0.05536018]
[1763587162450,3.31089805,133.4,133.37,3.15536018]
[1763587162840,0.05089805,133.4,133.37,3.15536018]
[1763587163234,3.31089805,133.4,133.37,3.15536018]
[1763587163434,3.31089805,133.4,133.37,0.05536018]
[1763587163945,0.05089805,133.4,133.37,3.15536018]
[1763587169147,3.19089805,133.4,133.37,3.15536018]
[1763587169343,0.05089805,133.4,133.37,3.15536018]
[1763587170256,0.05089805,133.4,133.37,9.91066018]
[1763587170449,0.05089805,133.4,133.37,3.15536018]
[1763587171739,0.05089805,133.4,133.39,3.18]
[1763587173148,3.14,133.46,133.42,3.18]
[1763587173958,3.14,133.45,133.27,3.18]
[1763587174251,3.19636308,133.37,133.35,0.05339666]
[1763587174465,0.05572421,133.37,133.35,3.22843587]
[1763587175044,0.05572421,133.37,133.35,9.98513587]
[1763587175450,0.05572421,133.37,133.36,3.18]
[1763587175654,3.14,133.46,133.37,6.7556]
[1763587175852,3.14,133.46,133.38,3.18]
[1763587176853,3.14,133.42,133.41,0.05183434]
[1763587177160,3.14,133.42,133.4,0.05560316]
[1763587177453,3.19668346,133.42,133.4,0.0521775]
[1763587178253,3.21,133.41,133.32,9.8182]
[1763587178454,3.21,133.41,133.33,3.06]
[1763587179250,0.0564849,133.38,133.36,0.04803169]
[1763587179449,3.2664849,133.38,133.36,0.04803169]
[1763587179649,3.2664849,133.38,133.3,3.06]
[1763587179848,3.21,133.38,133.3,3.06]
[1763587180251,3.21,133.38,133.3,9.8188]
[1763587180651,0.05360073,133.35,133.3,9.8188]
[1763587180853,0.05360073,133.35,133.33,0.04906628]
[1763587181054,0.05360073,133.35,133.33,3.10906628]
[1763587182454,3.21,133.41,133.33,3.10906628]
[1763587183357,3.21,133.41,133.33,0.04906628]
[1763587183555,3.21,133.37,133.33,3.10906628]
[1763587183752,0.05073461,133.38,133.34,3.10873264]
[1763587187161,0.05073461,133.38,133.36,3.06]
[1763587187958,0.05073461,133.38,133.37,9.8157]
[1763587192954,0.05073461,133.38,133.37,3.06]
[1763587193565,0.05073461,133.38,133.37,9.8157]
[1763587193862,3.21,133.47,133.38,3.06]
[1763587194061,3.21,133.5,133.42,3.06]
[1763587194661,3.21,133.55,133.33,3.06]
[1763587194959,0.04943987,133.45,133.44,3.06]
[1763587195158,0.05495365,133.46,133.44,3.06]
[1763587195462,3.26495365,133.46,133.43,0.05246947]
[1763587195964,0.05495365,133.46,133.43,3.11246947]
[1763587197361,3.21,133.52,133.43,3.11246947]
[1763587197562,3.21,133.52,133.43,3.06]
[1763587198355,3.26209576,133.49,133.46,0.0493802]
[1763587198559,3.21,133.49,133.45,3.06]
[1763587198760,0.05604497,133.48,133.46,0.05493987]
[1763587199362,0.05604497,133.48,133.46,3.11493987]
[1763587200162,3.21,133.55,133.46,3.11493987]
[1763587200363,13.4722,133.76,133.46,3.11493987]
[1763587200364,22.52,133.64,133.46,3.06]
[1763587200566,3.21,133.71,133.49,104.9922]
[1763587200865,173.43,133.84,133.51,104.9765]
[1763587201062,3.21,133.73,133.53,104.9637]
[1763587201267,3.21,133.79,133.61,0.05707744]
[1763587201456,2.03003734,134.04,133.55,104.9419]
[1763587201457,1.30217591,133.81,133.57,104.9318]
[1763587201765,3.21,133.79,133.68,6.7398]
[1763587202070,3.21,133.83,133.59,22.52]
[1763587202261,3.21,133.83,133.6,127.4213]
[1763587202467,3.21,133.87,133.66,104.8606]
[1763587202764,1.3012751,133.88,133.77,6.7353]
[1763587202963,0.9812751,133.88,133.71,104.8202]
[1763587203165,3.21,133.99,133.73,104.8069]
[1763587203476,3.21,133.99,133.72,104.8144]
[1763587203477,3.21,133.99,133.78,62.0]
[1763587203770,0.04937129,133.9,133.87,0.04906086]
[1763587203960,3.25937129,133.9,133.87,0.04906086]
[1763587204160,3.21,133.9,133.6,104.9078]
[1763587204359,3.2576925,133.9,133.71,6.7383]
[1763587204563,3.21,133.9,133.71,6.7383]
[1763587204761,3.21,134.03,133.67,104.8539]
[1763587204961,3.21,134.01,133.61,22.36922795]
[1763587205165,3.21,134.01,133.59,104.9145]
[1763587205369,0.05215048,133.81,133.79,0.05011384]
[1763587205567,3.21,133.85,133.59,104.9167]
[1763587205763,3.21,133.85,133.6,104.9087]
[1763587205968,3.21,133.85,133.71,0.04986115]
[1763587206171,3.21,133.85,133.57,116.7312588]
[1763587206361,3.21,133.85,133.68,6.7399]
[1763587206562,3.21,133.85,133.61,104.8951]
[1763587206771,3.21,133.85,133.64,104.8774]
[1763587206972,3.21,133.9,133.73,0.04756314]
[1763587207170,3.21,133.9,133.74,62.0]
[1763587207375,3.21,133.9,133.67,6.7404]
[1763587207969,3.19,133.79,133.77,0.05294626]
[1763587208174,0.04846544,133.79,133.77,0.05604035]
[1763587208674,3.19,133.89,133.77,0.05604035]
[1763587208870,3.19,133.89,133.57,221.6594588]
[1763587209069,3.19,133.89,133.58,104.9233]
[1763587209266,2.03003734,134.04,133.71,104.8224]
[1763587209267,3.19,134.03,133.71,104.8224]
[1763587209578,3.19,134.01,133.75,6.736]
[1763587209780,3.21385421,133.88,133.62,104.8906]
[1763587209981,3.19,133.88,133.67,6.7402]
[1763587210278,3.19,133.88,133.58,166.9206]
[1763587210462,3.19,133.88,133.69,6.7395]
[1763587210666,3.19,133.88,133.59,104.9165]
[1763587210667,3.19,133.88,133.66,104.8608]
[1763587210974,0.05705477,133.78,133.76,0.05286711]
[1763587211162,0.05746629,133.78,133.76,0.05062162]
[1763587211869,3.19,133.93,133.76,1.55062162]
[1763587212175,3.19,133.99,133.81,6.733]
[1763587212668,0.02168075,133.91,133.89,0.05277745]
[1763587212869,0.02168075,133.91,133.89,0.05244496]
[1763587213571,3.19,134.0,133.89,0.05244496]
[1763587213774,3.19,134.03,133.86,6.731]
[1763587214171,3.19,134.03,133.84,62.0]
[1763587214675,3.19,134.03,133.92,0.05526491]
[1763587214877,3.19,134.03,133.85,6.7311]
[1763587215177,3.19,134.03,133.84,62.0]
[1763587215364,3.19,134.03,133.88,6.73]
[1763587215865,0.05439344,133.97,133.94,0.05238563]
[1763587216265,3.19,134.03,133.94,0.05238563]
[1763587216463,3.19,134.03,133.89,6.7291]
[1763587216670,2.03003734,134.04,133.84,62.0]
[1763587216873,2.03003734,134.04,133.82,104.733]
[1763587217077,2.03003734,134.04,133.84,104.7208]
[1763587217278,2.03003734,134.04,133.93,0.0541066]
[1763587217477,2.03003734,134.04,133.97,0.05647811]
[1763587217674,5.22003734,134.04,133.97,0.05647811]
[1763587218472,3.19,134.03,133.97,0.05647811]
[1763587218668,2.03003734,134.04,133.97,0.05647811]
[1763587218869,3.19,134.14,133.97,1.55647811]
[1763587219077,3.19,134.23,134.04,0.05670174]
[1763587219270,3.19,134.23,134.12,0.05268281]
[1763587219478,3.19,134.23,134.16,0.05192229]
[1763587219676,3.19,134.23,133.95,104.6342]
[1763587219873,3.19,134.23,133.99,62.0]
[1763587220678,0.05116286,134.12,134.1,0.05686093]
[1763587220973,0.04887043,134.12,134.1,0.05134959]
[1763587221382,3.19,134.2,134.1,0.05134959]
[1763587221569,3.19,134.2,133.93,22.22710953]
[1763587221767,3.19,134.2,133.92,104.6542]
[1763587221967,3.19,134.2,134.03,6.7222]
[1763587222170,3.19,134.24,133.95,104.6345]
[1763587222376,3.19,134.24,133.96,104.6258]
[1763587222577,3.19,134.24,134.08,0.04724663]
[1763587222780,3.19,134.24,133.96,104.6258]
[1763587222977,3.19,134.24,134.04,6.7218]
[1763587223172,3.19,134.24,133.89,104.6774]
[1763587223378,3.19,134.24,133.87,231.9775955]
[1763587223578,3.19,134.19,133.87,231.9752955]
[1763587223769,3.19,134.19,133.87,149.89428848]
[1763587223970,3.19,134.19,133.9,62.0]
[1763587224178,3.19,134.03,134.02,0.05260312]
[1763587224378,3.19,134.03,133.87,149.89428848]
[1763587225085,6.7185,134.11,133.87,134.0148955]
[1763587225278,22.52,134.19,133.87,150.01988376]
[1763587225477,1.29732148,134.29,133.87,150.01988376]
[1763587225684,1.29732148,134.29,133.98,0.0511595]
[1763587225986,1.29732148,134.29,133.87,150.01988376]
[1763587226181,1.29732148,134.29,133.91,104.6652]
[1763587226377,1.29732148,134.29,133.95,104.6333]
[1763587226574,1.29732148,134.29,133.87,150.01988376]
[1763587227076,104.4357,134.21,133.92,62.0]
[1763587227292,104.4357,134.21,133.87,150.01988376]
[1763587227293,3.16,134.19,133.87,127.2848955]
[1763587227582,3.16,134.1,133.88,6.7299]
[1763587227782,3.16,134.1,133.87,127.2848955]
[1763587227982,0.0550058,134.0,133.98,0.05727133]
[1763587228182,3.21583465,134.0,133.98,0.05259864]
[1763587228383,0.05583465,134.0,133.98,0.05259864]
[1763587229070,3.16,134.23,133.98,1.55259864]
[1763587229270,3.16,134.2,133.98,6.7249]
[1763587229674,3.16,134.2,133.93,104.6503]
[1763587229878,3.16,134.2,133.9,104.6735]
[1763587230078,3.16,134.16,134.04,0.05007203]
[1763587230383,3.16,134.16,133.93,104.6467]
[1763587230384,3.16,134.16,133.99,62.0]
[1763587230678,1.29732148,134.29,133.99,62.0]
[1763587230879,3.16,134.27,133.99,62.0]
[1763587231084,3.16,134.27,134.12,0.05656785]
[1763587231380,3.16,134.27,133.95,104.6336]
[1763587231581,1.29732148,134.29,133.91,13.4568]
[1763587231582,3.16,134.26,133.91,13.4568]
[1763587231887,3.16,134.26,133.88,104.6891]
[1763587232290,3.16,134.07,134.06,0.00082176]
[1763587232477,3.16,134.07,133.87,127.2848955]
[1763587232784,3.16,134.07,133.92,6.7277]
[1763587233486,0.04934577,134.01,133.98,0.0498643]
[1763587233686,3.16,134.12,133.98,0.05239838]
[1763587233882,3.16,134.12,133.87,127.2848955]
[1763587234088,3.16,134.12,133.97,6.7254]
[1763587234282,3.16,134.12,133.89,104.6813]
[1763587234492,3.16,134.12,133.91,104.6659]
[1763587234677,3.16,134.28,134.0,0.04778086]
[1763587234880,3.16,134.14,133.89,118.1371]
[1763587235079,3.16,134.14,133.91,104.6651]
[1763587235282,3.16,134.14,133.92,104.6574]
[1763587235489,3.16,134.18,133.96,104.6255]
[1763587235688,3.16,134.18,134.07,6.7202]
[1763587235889,3.16,134.22,134.11,0.05113949]
[1763587236089,3.16,134.22,133.98,104.6081]
[1763587236384,3.16,134.22,134.0,104.5954]
[1763587236681,3.16,134.27,134.14,6.7167]
[1763587236881,0.0459232,134.22,134.19,0.0484917]
[1763587237086,3.16,134.27,134.04,104.5614]
[1763587237284,3.16,134.27,134.08,104.5321]
[1763587237479,3.16,134.31,134.14,0.05234802]
[1763587237684,5.12003734,134.33,134.13,62.0]
[1763587237880,3.09,134.32,134.13,62.0]
[1763587238180,2.03003734,134.33,134.13,166.4906]
[1763587238388,2.03003734,134.33,134.18,104.4546]
[1763587238589,3.734e-05,134.33,134.22,0.0532905]
[1763587238783,3.734e-05,134.33,134.14,104.4833]
[1763587239083,3.734e-05,134.33,134.22,0.05592395]
[1763587239287,3.734e-05,134.33,134.26,6.76719465]
[1763587239486,3.09003734,134.33,134.28,0.04886207]
[1763587239680,3.09003734,134.33,134.06,104.5488]
[1763587239880,3.09003734,134.33,134.16,6.7159]
[1763587240084,3.09003734,134.33,134.09,104.5248]
[1763587240286,3.09003734,134.33,134.06,104.5469]
[1763587240485,3.09003734,134.33,134.15,6.7162]
[1763587240886,3.09003734,134.33,134.23,0.05458306]
[1763587241188,3.734e-05,134.33,134.15,104.4779]
[1763587241378,3.734e-05,134.33,134.06,327.0738]
[1763587241379,3.734e-05,134.33,134.16,62.0]
[1763587242185,3.734e-05,134.33,134.24,6.7116]
[1763587242384,3.734e-05,134.33,134.27,0.04718358]
[1763587242581,3.09,134.5,134.29,0.0563007]
[1763587242781,3.09,134.5,134.2,104.4361]
[1763587242782,3.09,134.5,134.38,0.05474894]
[1763587242982,3.09,134.5,134.29,6.7091]
[1763587243190,3.09,134.5,134.23,104.4162]
[1763587243496,3.09,134.5,134.18,104.4544]
[1763587243694,1.29538983,134.51,134.01,313.7513]
[1763587243695,3.09,134.48,134.08,104.5259]
[1763587243990,0.04978181,134.29,134.27,0.05384118]
[1763587244191,3.09,134.37,134.27,0.05453002]
[1763587244381,3.09,134.37,134.14,104.4863]
[1763587244586,1.29538983,134.51,134.17,104.4626]
[1763587244782,3.09,134.5,134.15,104.4774]
[1763587244988,3.09,134.5,134.16,104.4702]
[1763587245186,3.09,134.49,134.22,104.4237]
[1763587245387,3.09,134.49,134.32,0.05558464]
[1763587245586,3.09,134.48,134.25,6.7114]
[1763587245782,3.09,134.48,134.1,104.5132]
[1763587245992,3.09,134.48,134.11,117.9428]
[1763587246295,1.29538983,134.51,134.1,104.5132]
[1763587246296,3.09,134.42,134.21,6.713]
[1763587246488,3.09,134.42,134.09,104.5253]
[1763587246691,0.04773766,134.27,134.25,0.05407303]
[1763587246894,3.09,134.45,134.17,104.4621]
[1763587247189,3.09,134.45,134.3,6.7086]
[1763587247893,3.09,134.45,134.36,0.05684423]
[1763587248089,3.09,134.45,134.39,0.05475891]
[1763587248290,3.09,134.45,134.12,104.5018]
[1763587248481,3.09,134.45,134.1,104.5138]
[1763587248686,3.09,134.45,134.11,104.5087]
[1763587248895,3.09,134.41,134.22,6.7126]
[1763587249088,3.09,134.41,134.12,62.0]
[1763587249282,0.05714222,134.28,134.25,0.05051346]
[1763587249486,3.09,134.38,134.25,0.05547726]
[1763587249683,3.09,134.38,134.16,104.4677]
[1763587249886,3.09,134.5,134.17,104.4631]
[1763587250082,3.09,134.47,134.14,104.4865]
[1763587250388,3.09,134.47,134.29,0.05362715]
[1763587250594,3.09,134.46,134.28,17.85842634]
[1763587250795,3.09,134.46,134.36,0.0484112]
[1763587251092,3.09,134.46,134.15,13.4325]
[1763587251093,3.09,134.46,134.4,0.05516599]
[1763587251288,3.09,134.46,134.42,0.05597589]
[1763587251487,3.09,134.46,134.43,0.05512161]
[1763587251797,3.09,134.51,134.43,0.05532666]
[1763587252088,3.09,134.51,134.38,17.85842634]
[1763587252089,3.09,134.51,134.46,0.05028082]
[1763587252292,3.09,134.51,134.47,0.05632682]
[1763587252590,1.29471511,134.57,134.48,0.05336289]
[1763587252591,3.09,134.57,134.48,0.05336289]
[1763587252793,3.09,134.57,134.51,0.05499792]
[1763587253199,3.09,134.56,134.41,17.85842634]
[1763587253590,3.09,134.56,134.32,104.3438]
[1763587253591,3.09,134.56,134.44,6.7018]
[1763587253794,3.09,134.56,134.44,17.85842634]
[1763587254098,0.05155513,134.51,134.49,0.04932587]
[1763587254287,0.05385095,134.51,134.49,0.04941983]
[1763587254486,1.53385095,134.51,134.49,0.04941983]
[1763587254686,0.05385095,134.51,134.49,0.04941983]
[1763587254889,19.88846368,134.62,134.49,0.04941983]
[1763587254890,3.09,134.61,134.49,0.04941983]
[1763587255089,3.09,134.61,134.44,17.85842634]
[1763587255284,3.09,134.61,134.46,6.7007]
[1763587255482,3.09,134.61,134.49,17.85842634]
[1763587255892,3.09,134.61,134.54,0.04792969]
[1763587258896,2.03003734,134.62,134.54,0.04792969]
[1763587259394,2.03003734,134.62,134.55,17.85842634]
[1763587259600,3.09,134.66,134.57,0.05446227]
[1763587259792,3.09,134.71,134.6,0.04982393]
[1763587260095,3.09,134.71,134.64,0.05102852]
[1763587260893,3.09,134.69,134.52,17.85842634]
[1763587261094,3.09,134.69,134.56,17.85842634]